Cogmind - Beta 15 @@@ ROGUE MODE // 2025.09.20 @ 15:41:11 Player: Blue Result: Destroyed by G-34 Mercenary with Small Laser Performance ------------- Evolutions (0) 0 Regions Visited (2) 400 Robots Destroyed (24) 120 Value Destroyed (482) 482 Prototype IDs (0) 0 Alien Tech Used (0) 0 Bonus (0) 0 TOTAL SCORE: 1002 Bonus ------- None Cogmind --------- Core Integrity 0/250 Matter 300/300 Energy 250/250 System Corruption 0% Temperature Cool (6) Movement Rolling (115) Ox1 Location -10/Mines Parts ------- > --- POWER (1) -------- Ion Engine > --- PROPULSION (2) --- Compact Wheel Flight Unit > --- UTILITY (2) ------ Large Storage Unit > --- WEAPON (2) ------- Beam Cannon Beam Cannon > --- INVENTORY (15) --- Light Ion Engine Light Nuclear Core Heat Sink Small Storage Unit Sensor Array Signal Interpreter Propulsion Shielding Beam Cannon Peak State ------------ > --- POWER ------------ Ion Engine > --- PROPULSION ------- Aluminum Leg Aluminum Leg > --- UTILITY ---------- Improved Heat Sink Large Storage Unit > --- WEAPON ----------- Beam Cannon Beam Cannon > --- INVENTORY -------- Ion Engine Light Ion Engine Light Nuclear Core Heat Sink Small Storage Unit Sensor Array Signal Interpreter Propulsion Shielding Beam Cannon Beam Cannon [Rating: 10] Favorites ----------- Power Ion Engine Engine Ion Engine Propulsion Aluminum Leg Treads Light Treads Leg Aluminum Leg Wheel Compact Wheel Flight Unit Flight Unit Utility Large Storage Unit Device Heat Sink Storage Large Storage Unit Protection Propulsion Shielding Weapon Beam Cannon Energy Gun Medium Laser Energy Cannon Beam Cannon Ballistic Gun Light Assault Rifle Build | -11 -10 -10 ------- Run | Yrd Mat Min Slots Evolved . | . . . Power . | . . . Propulsion . | . . . Utility . | . . . Weapon . | . . . Parts Attached 20 | 6 9 5 Power 3 | 1 1 1 Engine 3 | 1 1 1 Core . | . . . Reactor . | . . . Propulsion 7 | 2 2 3 Treads 2 | 2 . . Leg 2 | . 2 . Wheel 1 | . . 1 Hover . | . . . Flight 2 | . . 2 Utility 5 | 1 4 . Device 2 | . 2 . Storage 2 | 1 1 . Processor . | . . . Hackware . | . . . Protection 1 | . 1 . Artifact . | . . . Weapon 5 | 2 2 1 Energy Gun 1 | 1 . . Energy Cannon 3 | . 2 1 Ballistic Gun 1 | 1 . . Ballistic Cannon . | . . . Launcher . | . . . Special Weapon . | . . . Impact Weapon . | . . . Slashing Weapon . | . . . Piercing Weapon . | . . . Special Melee Weapon . | . . . Unidentified Prototypes . | . . . Parts Lost 6 | . 1 5 Power 2 | . 1 1 Propulsion 2 | . . 2 Utility 1 | . . 1 Weapon 1 | . . 1 Highest Loss Streak 4 | . 1 4 To Critical Strikes . | . . . Average Backups 6 | . 6 8 Power 1 | . 1 2 Propulsion . | . . . Utility 3 | . 3 5 Weapon 1 | . 1 1 Tool/Special . | . . . Unused Backups 5 | . . 5 Power 2 | . . 2 Propulsion . | . . . Utility 2 | . . 2 Weapon 1 | . . 1 Tool/Special . | . . . Average Slot Usage (%) 96 | . 98 86 Engine 13 | . 13 14 Treads 3 | . 3 . Leg 22 | . 24 5 Device 11 | . 11 11 Storage 14 | . 14 14 Energy Gun 1 | . 1 . Energy Cannon 25 | . 25 28 Ballistic Gun 1 | . 1 . Peak Build Rating 10 | 6 10 10 Average Rating 7 | 4 7 8 On Entrance 5 | . 6 10 Naked Turns . | . . . Heaviest Build 32 | 13 32 32 Greatest Support 40 | 40 40 16 Greatest Overweight (x) 10 | . 1 10 Average Overweight (x) . | . . 4 Largest Inventory Capacity 15 | 8 15 15 Average Capacity 12 | 6 12 15 Most Carried 10 | . 10 10 Average Carried 6 | . 6 8 Final Capacity 15 | 8 15 15 Final Carried 10 | . 10 8 Class Distribution -------------------- 100% | Mutant Dominant Class ---------------- Mutant | -10/Materials Mutant | -10/Mines Resources | -11 -10 -10 ----------- Run | Yrd Mat Min Matter Collected 416 | 211 165 40 Remotely . | . . . Salvage Created 796 | . 533 263 Parts 44 | . 31 13 Haulers Intercepted . | . . . Recyclers Shooed 2 | . 1 1 Parts Field Recycled . | . . . Retrieved Matter . | . . . Parts Self-Destructed . | . . . Prevented . | . . . Kills | -11 -10 -10 ------- Run | Yrd Mat Min Combat Hostiles Destroyed 15 | . 12 3 Guns 1 | . 1 . Cannons 13 | . 10 3 Classes Destroyed 7 | . 6 1 Worker 1 | . 1 . Tunneler 1 | . . 1 Recycler 3 | . 1 2 Operator 1 | . 1 . Watcher 3 | . 3 . Swarmer 6 | . 3 3 Grunt 9 | . 9 . Best Kill Streak 6 | . 6 6 Combat Bots Only 5 | . 5 3 Max Kills in Single Turn 1 | . 1 1 Gunslinging . | . . . Exploded . | . . . Melee . | . . . Uniques/NPCs Destroyed . | . . . Combat | -11 -10 -10 -------- Run | Yrd Mat Min Hostile Shots Fired 133 | . 77 56 Missed 19 | . 15 4 Hits 114 | . 62 52 Projectile 114 | . 62 52 Damage Taken 1137 | . 710 427 Core 251 | . 164 87 Absorbed by Shields . | . . . Core Remaining (%) 100 | 100 . . Volleys Fired 74 | . 59 15 Largest 2 | . 2 2 Hottest 120 | . 120 120 Shots Fired 148 | . 118 30 Gun 32 | . 32 . Cannon 116 | . 86 30 Launcher . | . . . Special . | . . . Kinetic 16 | . 16 . Thermal 132 | . 102 30 Explosive . | . . . Electromagnetic . | . . . Robot Hit Streak 8 | . 8 3 Robot Miss Streak 6 | . 5 6 Penetration Max . | . . . Secondary Targets . | . . . Shots Hit Robots 79 | . 68 11 Core Hits 28 | . 22 6 Critical Kills . | . . . Critical Parts Destroyed . | . . . Critical Strikes 1 | . 1 . Burn 1 | . 1 . Melee Attacks . | . . . Impact . | . . . Slashing . | . . . Piercing . | . . . Sneak Attacks . | . . . Combat Hostiles . | . . . Follow-up Attacks . | . . . Damage Inflicted 1324 | . 1112 212 Guns 240 | . 240 . Cannons 1073 | . 861 212 Explosions . | . . . Melee . | . . . Ramming 11 | . 11 . Kinetic 93 | . 93 . Thermal 1220 | . 1008 212 Explosive . | . . . Electromagnetic . | . . . Impact . | . . . Slashing . | . . . Piercing . | . . . Highest Corruption . | . . . Average Corruption . | . . . Corruption Purged . | . . . Corruption Blocked . | . . . Overload Shots . | . . . Overflow Damage 7 | . 7 . Projectiles 7 | . 7 . Explosions . | . . . Melee . | . . . Knockbacks . | . . . Impact . | . . . Kinetic . | . . . Secondary . | . . . Self-Inflicted Damage . | . . . Shots . | . . . Rammed . | . . . Targets Rammed 1 | . 1 . Kicked 1 | . 1 . Crushed . | . . . Highest Temperature 309 | . 309 154 Average Temperature 101 | . 111 54 Received Heat Transfer 378 | . 336 42 Effects 2 | . 2 . Energy Bleed 2 | . 2 . Siege Activations . | . . . Martial Activations . | . . . Shielding Activations . | . . . Robots Disrupted . | . . . Combat Hostiles . | . . . Robots Corrupted . | . . . Combat Hostiles . | . . . Parts Fried . | . . . Impact Corruptions . | . . . Robots Melted 1 | . 1 . Combat Hostiles 1 | . 1 . Parts Melted 6 | . 5 1 Heat Transferred 2775 | . 2331 444 Parts Sabotaged . | . . . Parts Stolen . | . . . Parts Stripped . | . . . Power Chain Reactions . | . . . Alert | -11 -10 -10 ------- Run | Yrd Mat Min Maximum Alert Level . | . . . Low Security (%) 100 | 100 100 100 Level 1 . | . . . Level 2 . | . . . Level 3 . | . . . Level 4 . | . . . Level 5 . | . . . High Security . | . . . Max Security . | . . . Peak Influence 115 | . 115 70 Initial 10 | . . 10 Average 37 | . 40 40 Influence Increases 444 | . 359 85 Destroy 0b10 Robot/C 300 | . 240 60 Destroy 0b10 Robot/NC 45 | . 30 15 Destroy Leader 66 | . 56 10 Destroy Structure 3 | . 3 . Lose Combat Pursuer 30 | . 30 . Influence Decreases 399 | . 331 68 Entered New Map 18 | . . 18 Time Decay 351 | . 321 30 Lost Part 30 | . 10 20 Squads Dispatched 3 | . 3 . Investigation 1 | . 1 . Extermination . | . . . Reinforcement 2 | . 2 . Assault . | . . . Garrison . | . . . Intercept . | . . . Searches Triggered . | . . . Construction Impeded . | . . . Haulers Reinforced . | . . . Active Scanning Responses . | . . . Cargo Convoy Interrupts . | . . . Stealth | -11 -10 -10 --------- Run | Yrd Mat Min Distress Signals 1 | . . 1 Communications Jammed . | . . . Distress Signals . | . . . Times Spotted 26 | . 22 4 Peak Tracking Total 5 | . 5 3 Tactical Retreats 2 | . 2 . Traps | -11 -10 -10 ------- Run | Yrd Mat Min Traps Triggered 2 | . 2 . Indirectly . | . . . Trap Hack Attempts . | . . . Triggered . | . . . Disarmed . | . . . Reprogrammed . | . . . Reused . | . . . Traps Extracted . | . . . Installed . | . . . Triggered . | . . . Machines | -11 -10 -10 ---------- Run | Yrd Mat Min Machines Disabled . | . . . Max in Single Turn . | . . . Machines Repaired . | . . . Machines Dismantled . | . . . Machines Sabotaged . | . . . Overloaded Fab Kills . | . . . Hacking | -11 -10 -10 --------- Run | Yrd Mat Min Machines Accessed 3 | . 3 . Terminals 3 | . 3 . Fabricators . | . . . Repair Stations . | . . . Recycling Units . | . . . Scanalyzers . | . . . Garrison Access . | . . . Total Hacks 5 | . 5 . Successful . | . . . Failed 5 | . 5 . Catastrophic 2 | . 2 . Database Lockouts . | . . . Manual 5 | . 5 . Terminals 5 | . 5 . Fabricators . | . . . Repair Stations . | . . . Recycling Units . | . . . Scanalyzers . | . . . Garrison Access . | . . . Terminal Hacks . | . . . Fabricator Hacks . | . . . Repair Station Hacks . | . . . Recycling Unit Hacks . | . . . Scanalyzer . | . . . Garrison Access Hacks . | . . . Unauthorized Hacks . | . . . Terminals . | . . . Fabricators . | . . . Repair Stations . | . . . Recycling Units . | . . . Scanalyzers . | . . . Garrison Access . | . . . Data Cores Recovered . | . . . Used . | . . . Hacking Detections 3 | . 3 . Full Trace Events . | . . . Feedback Events . | . . . Feedback Blocked . | . . . Robot Schematics Acquired . | . . . Robots Built . | . . . Authchips . | . . . Time . | . . . Total Robot Build Rating . | . . . Part Schematics Acquired . | . . . Parts Built . | . . . Authchips . | . . . Time . | . . . Total Part Build Rating . | . . . Parts Repaired . | . . . Time . | . . . Parts Recycled . | . . . Recycled Matter . | . . . Retrieved Matter . | . . . Retrieved Components . | . . . Parts Scanalyzed . | . . . Part Schematics Acquired . | . . . Parts Damaged . | . . . Bothacking | -11 -10 -10 ------------ Run | Yrd Mat Min Used RIF Installer . | . . . Robots Hacked . | . . . Non-combat . | . . . Combat . | . . . Robot Hacks Applied . | . . . Relay Couplers Released . | . . . Fabnet Peak Effective % . | . . . Robots Rewired . | . . . Allies Hacked . | . . . Hacks Repelled . | . . . Allies | -11 -10 -10 -------- Run | Yrd Mat Min Total Allies . | . . . Largest Group . | . . . Highest-Rated Group . | . . . Highest-Rated Ally . | . . . Total Orders . | . . . Ally Attacks . | . . . Total Damage . | . . . Kills . | . . . Allies Corrupted . | . . . Allies Melted . | . . . Intel | -11 -10 -10 ------- Run | Yrd Mat Min Active Infowar (turns) . | . . . Robot Analysis Total . | . . . Derelict Logs Recovered . | . . . Drone Launches . | . . . Drone Recoveries . | . . . Exploration | -11 -10 -10 ------------- Run | Yrd Mat Min Turns Passed 1140 | 79 973 88 Spaces Moved 477 | 46 426 5 Core 3 | 2 . 1 Treads 86 | 44 42 . Legs 384 | . 384 . Wheels 2 | . . 2 Hover . | . . . Flight 2 | . . 2 Fastest Speed 50 | 50 120 115 Average Speed 169 | 155 169 331 Slowest Speed 600 | 160 190 600 Overloaded Moves . | . . . Propulsion Burnouts . | . . . Robots Hopped . | . . . Potential Cave-ins . | . . . Cave-ins Triggered . | . . . Exploration Rate (%) 30 | 4 83 3 Regions Visited 2 Branch Regions 1 Pre-discovered Areas . | . . . Known Exits Taken . | . . . Unknown Exits Taken 2 | 1 1 . Scrap Searched . | . . . Spaces Dug . | . . . Terrain Destroyed . | . . . Melee . | . . . Projectile . | . . . AOE . | . . . Terrain Rammed . | . . . Walls Destroyed . | . . . Machines Disabled . | . . . Actions | -11 -10 -10 --------- Run | Yrd Mat Min Total 653 | 51 557 45 Wait 74 | . 54 20 Move 475 | 45 425 5 Hop . | . . . Pick Up 8 | . 8 . Fast Attach 11 | 6 3 2 Attach 2 | . . 2 Detach . | . . . Swap 8 | . 7 1 Drop . | . . . Fire 74 | . 59 15 Melee . | . . . Ram . | . . . Kick 1 | . 1 . Crush . | . . . Escape Stasis . | . . . Rewire . | . . . Trap . | . . . Miscellaneous . | . . . Route ------- -11/Scrapyard -10/Materials (discovered 3 exits: [*Mat] / [*Min x2]) -10/Mines History --------- Turn | Location | Event 10 | -11/Scrapyard | Discovered new exit (range 16) 80 | -11/Scrapyard | Entered Materials 302 | -10/Materials | Build established: Mutant 480 | -10/Materials | Discovered new exit (range 12) 680 | -10/Materials | Derelicts attacked the area 775 | -10/Materials | Discovered new exit (range 10) 816 | -10/Materials | Core integrity fell below 50% 881 | -10/Materials | Discovered new exit (range 16) 1053 | -10/Materials | Entered Mines 1068 | -10/Mines | Met a Derelict bent on vengeance 1078 | -10/Mines | Core integrity fell below 20% 1106 | -10/Mines | Lost 4 parts (1p2n1w) 1141 | -10/Mines | Destroyed by G-34 Mercenary with Small Laser Last Messages --------------- 01016_ K-01 Serf cleans the Terminal. 01044_ K-01 Serf collects debris. LOCATION=UNKNOWN GOAL=ESCAPE 01055_ Aluminum Leg destroyed. 01055_ Beam Cannon destroyed. 01064_ Ion Engine destroyed. 01075_ Aluminum Leg destroyed. 01076_ S-10 Pest destroyed. 01097_ Acquired Flight Unit. 01106_ R-06 Scavenger destroyed. 01107_ R-06 Scavenger collects Tractor Beam. 01112_ Acquired Com. Wheel. 01112_ R-06 Scavenger collects Com. Wheel. 01113_ Seismic Detector melted. 01113_ T-07 Excavator destroyed. 01115_ R-06 Scavenger sends out distress signal. 01116_ R-06 Scavenger destroyed. 01119_ Acquired 40 matter. 01129_ Imp. Heat Sink destroyed. Map ----- +----------------------------------------------------+ | ?????????????????????????????????????????????? | | ?????????????????????????????????????????????? | | ?????????????????????????????????????????????? | | ?????????????????????????????????????????????? | | ?????????????????????????????????????????????? | | ?????????????????????????????????????????????? | | ?????????????????????????????????????????????? | | ?????????????????????????????????????????????? | | ?????????????????????????????????????????????? | | ?????????????????????????????????????????????? | | ?????????????????????????????????????????????? | | ?????????????????#???????????????????????????? | | ???????????????? ???????????????????????????? | | ????????????????# ???????????????????????????? | | ????????????????# ???????????????????????????? | | ????????????????# ???????????????????????????? | | ???????????????## ???????????????????????????? | | ??????????????? # ##?????????????????????????? | | ???????????????? ?????????????????????????? | | ????????????????? ?????????????????????????? | | ?????????????????# #?????????????????????????? | | ???????????????### ####??????????????????????? | | ???????????????# #??????????????????????? | | ???????????????# #??????????????????????? | | ???????????????# =%* #??????????????????????? | | ???????????????# !%!@#??????????????????????? | | ???????????????# =%%!g#??????????????????????? | | ???????????????# *=|% #?????????????????? | | ???????????????######= #?????????????????? | | ????????????????????###### #?????????????????? | | ???????????????????????????#?????????????????? | | ?????????????????????????????????????????????? | | ?????????????????????????????????????????????? | | ?????????????????????????????????????????????? | | ?????????????????????????????????????????????? | | ?????????????????????????????????????????????? | | ?????????????????????????????????????????????? | | ?????????????????????????????????????????????? | | ?????????????????????????????????????????????? | | ?????????????????????????????????????????????? | | ?????????????????????????????????????????????? | | ?????????????????????????????????????????????? | | ?????????????????????????????????????????????? | | ?????????????????????????????????????????????? | | ?????????????????????????????????????????????? | | ?????????????????????????????????????????????? | | ?????????????????????????????????????????????? | | ?????????????????????????????????????????????? | | ?????????????????????????????????????????????? | | ?????????????????????????????????????????????? | +----------------------------------------------------+ Best States ------------- Heat Dissipation 39 Energy Generation 10 Energy Capacity 250 Matter Stores 300 Matter Capacity 300 Sight Range 16 Terrain Scan Density 10 Propulsion Shielding 33 Evasion (%) 55 Recoil Reduction 2 Item Schematics ----------------- None Robot Schematics ------------------ None Fabricated ------------ Nothing Repaired ---------- Nothing Alien Tech Used ----------------- None Achievements -------------- None Challenges ------------ None Game ------ Seed AnalysisSignalMediator Manual? 0 Play Time 00:09:25 Cumulative 51.0 hours Start 2025.09.20 @ 15:32:45 End 2025.09.20 @ 15:41:11 Sessions 1 Manual Loads 0 Difficulty Rogue Special Mode None Game No. 36 Rogue 36 Adventurer 0 Explorer 0 Win Type - Total 0 Types 0/0/0/0/0/0/0/0/0/0 Lore% 13 Gallery% 34 Achievement% 33 Wizard Run 0 Options --------- Layout 1 ASCII 0 Keyboard 1 Movement Arrows Keybinds 0 Fullscreen 1 Font 24/Smallcaps Map View 50x35 Zoom Use 0% Tactical HUD 1 Map Filters NONE Filters NONE Steam 1 RUN: fdaf65e0-9a17-4dbe-acee-3d27234ec244